fUSD/lending_fUSD_20251023
["ID","MTS","AMOUNT","RATE_DAILY","PERIOD"]
[392187973,1761246640877,-151.0,0.00036598,30]
[392187974,1761246640886,-151.0,0.00036598,30]
[392187975,1761246640895,-151.0,0.00036598,30]
[392187976,1761246640905,-156.193266,0.00036598,30]
[392187977,1761246640914,-151.0,0.00036598,30]
[392187978,1761246640924,-151.0,0.00036598,30]
[392187979,1761246640932,-151.0,0.00036598,30]
[392187980,1761246641062,-151.0,0.00036598,30]
[392187981,1761246641073,-153.454905,0.00036598,30]
[392187982,1761246641083,-151.0,0.00036598,30]
[392187983,1761246641092,-151.0,0.00036598,30]
[392187984,1761246641102,-151.0,0.00036598,30]
[392187985,1761246641111,-151.0,0.00036598,30]
[392187986,1761246641121,-151.0,0.00036598,30]
[392187987,1761246641131,-151.0,0.00036598,30]
[392187988,1761246641140,-151.0,0.00036598,30]
[392187989,1761246641150,-151.0,0.00036598,30]
[392187990,1761246641160,-159.356829,0.00036598,30]
[392187991,1761246641169,-151.0,0.00036598,30]
[392187992,1761246641179,-151.0,0.00036598,30]
[392187993,1761246641189,-240.660672,0.00036598,30]
[392187994,1761246641199,-240.660672,0.00036598,30]
[392187995,1761246641211,-162.247465,0.00036598,30]
[392187996,1761246641226,-155.281779,0.00036598,30]
[392187997,1761246641235,-151.0,0.00036598,30]
[392187998,1761246641245,-151.0,0.00036598,30]
[392187999,1761246641255,-151.0,0.00036598,30]
[392188000,1761246641264,-151.0,0.00036598,30]
[392188001,1761246641273,-151.0,0.00036598,30]
[392188002,1761246641283,-151.0,0.00036598,30]
[392188003,1761246641292,-151.0,0.00036598,30]
[392188004,1761246641301,-151.0,0.00036598,30]
[392188005,1761246641310,-151.0,0.00036598,30]
[392188006,1761246641319,-151.0,0.00036598,30]
[392188007,1761246641328,-152.433168,0.00036598,30]
[392188008,1761246641337,-151.0,0.00036598,30]
[392188009,1761246641346,-151.0,0.00036598,30]
[392188010,1761246641356,-151.0,0.00036598,30]
[392188011,1761246641365,-151.0,0.00036598,30]
[392188012,1761246641375,-151.0,0.00036598,30]
[392188013,1761246641386,-151.0,0.00036598,30]
[392188014,1761246641396,-151.0,0.00036598,30]
[392188015,1761246641405,-161.398088,0.00036598,30]
[392188016,1761246641415,-152.680624,0.00036598,30]
[392188017,1761246641424,-151.0,0.00036598,30]
[392188018,1761246641434,-151.0,0.00036598,30]
[392188019,1761246641443,-151.0,0.00036598,30]
[392188020,1761246641453,-151.0,0.00036598,30]
[392188021,1761246641463,-151.0,0.00036598,30]
[392188022,1761246641473,-151.0,0.00036598,30]
[392188023,1761246641482,-151.0,0.00036598,30]
[392188024,1761246641492,-151.0,0.00036598,30]
[392188025,1761246641501,-151.0,0.00036598,30]
[392188026,1761246641511,-151.0,0.00036598,30]
[392188027,1761246641522,-151.0,0.00036598,30]
[392188028,1761246641531,-153.882115,0.00036598,30]
[392188029,1761246641540,-162.198999,0.00036598,30]
[392188030,1761246641550,-151.0,0.00036598,30]
[392188031,1761246641559,-288.147479,0.00036598,30]
[392188032,1761246641568,-151.0,0.00036598,30]
[392188033,1761246641577,-155.395566,0.00036598,30]
[392188034,1761246641587,-151.0,0.00036598,30]
[392188035,1761246641597,-151.0,0.00036598,30]
[392188036,1761246641606,-814.216258,0.00036598,30]
[392188037,1761246641616,-814.216258,0.00036598,30]
[392188038,1761246641637,-814.216258,0.00036598,30]
[392188039,1761246641651,-151.0,0.00036598,30]
[392188040,1761246641660,-814.216258,0.00036598,30]
[392188041,1761246641670,-151.0,0.00036598,30]
[392188042,1761246641679,-151.0,0.00036598,30]
[392188043,1761246641689,-151.0,0.00036598,30]
[392188044,1761246641699,-151.0,0.00036598,30]
[392188045,1761246641708,-151.0,0.00036598,30]
[392188046,1761246641717,-151.0,0.00036598,30]
[392188047,1761246641729,-151.0,0.00036598,30]
[392188048,1761246641738,-151.0,0.00036598,30]
[392188049,1761246641748,-151.0,0.00036598,30]
[392188050,1761246641757,-151.0,0.00036598,30]
[392188051,1761246641767,-151.459336,0.00036598,30]
[392188052,1761246641776,-596.248041,0.00036598,30]
[392188053,1761246641785,-596.248041,0.00036598,30]
[392188054,1761246641794,-596.248041,0.00036598,30]
[392188055,1761246641804,-596.248041,0.00036598,30]
[392188056,1761246641813,-151.0,0.00036598,30]
[392188057,1761246641823,-151.0,0.00036598,30]
[392188058,1761246641831,-201.275282,0.00036598,30]
[392188059,1761246641841,-151.0,0.00036598,30]
[392188060,1761246641850,-151.0,0.00036598,30]
[392188061,1761246641859,-153.700556,0.00036598,30]
[392188062,1761246641869,-151.0,0.00036598,30]
[392188063,1761246641878,-151.0,0.00036598,30]
[392188064,1761246641887,-176.146582,0.00036598,30]
[392188065,1761246641897,-176.146582,0.00036598,30]
[392188066,1761246641906,-151.0,0.00036598,30]
[392188067,1761246641916,-176.146582,0.00036598,30]
[392188068,1761246641925,-151.0,0.00036598,10]
[392188069,1761246641934,-176.146582,0.00036598,30]
[392188070,1761246641943,-152.869683,0.00036598,30]
[392188071,1761246641953,-151.0,0.00036598,30]
[392188072,1761246641963,-151.0,0.00036598,30]
[392188073,1761246641972,-936.15658912,0.000366,2]
[392188074,1761246641984,-694.0,0.000366,30]
[392188075,1761246641995,-500.0,0.000366,7]
[392188076,1761246642005,-200.0,0.000366,13]
[392188077,1761246642014,-500.0,0.000366,30]
[392188078,1761246642024,-500.0,0.000366,120]
[392188079,1761246642034,-5974.3441976,0.00036601,2]
[392188080,1761246642043,-221553.6877662,0.00036601,2]
[392188081,1761246642052,-200.0,0.00036601,2]
[392188082,1761246642062,-500.0,0.00036601,120]
[392188083,1761246642070,-500.0,0.00036601,120]
[392188084,1761246642078,-499.99999984,0.00036601,120]
[392188085,1761246642087,-151.0,0.00036601,30]
[392188086,1761246642096,-151.0,0.00036601,30]
[392188087,1761246642105,-152.92307,0.00036601,14]
[392188088,1761246642115,-154.2615,0.00036601,30]
[392188089,1761246642124,-151.0,0.00036601,30]
[392188090,1761246642133,-151.0,0.00036601,30]
[392188091,1761246642142,-151.0,0.00036601,30]
[392188092,1761246642151,-151.000001,0.00036601,30]
[392188093,1761246642161,-289.052904,0.00036601,30]
[392188094,1761246642170,-151.0,0.00036601,2]
[392188095,1761246642179,-797.21219253,0.00036601,2]
[392188096,1761246642188,-151.0,0.00036601,30]
[392188097,1761246642197,-153.16293,0.00036601,30]
[392188098,1761246642206,-151.0,0.00036601,30]
[392188099,1761246642216,-151.0,0.00036601,30]
[392188100,1761246642225,-151.0,0.00036601,30]
[392188101,1761246642234,-151.0,0.00036601,30]
[392188102,1761246642243,-151.0,0.00036601,30]
[392188103,1761246642252,-151.0,0.00036601,30]
[392188104,1761246642262,-151.0,0.00036601,30]
[392188105,1761246642271,-151.0,0.00036601,30]
[392188106,1761246642281,-151.0,0.00036601,30]
[392188107,1761246642291,-151.0,0.00036601,30]
[392188108,1761246642300,-151.0,0.00036601,30]
[392188109,1761246642309,-151.0,0.00036601,30]
[392188110,1761246642319,-151.0,0.00036601,30]
[392188111,1761246642328,-151.0,0.00036601,30]
[392188112,1761246642338,-151.0,0.00036601,30]
[392188113,1761246642347,-151.0,0.00036601,30]
[392188114,1761246642356,-151.0,0.00036601,30]
[392188115,1761246642365,-151.0,0.00036601,30]
[392188116,1761246642374,-151.0,0.00036601,30]
[392188117,1761246642384,-151.0,0.00036601,30]
[392188118,1761246642393,-151.0,0.00036601,30]
[392188119,1761246642402,-151.0,0.00036601,30]
[392188120,1761246642411,-151.0,0.00036601,30]
[392188121,1761246642420,-240.660672,0.00036601,30]
[392188122,1761246642429,-240.660672,0.00036601,30]
[392188123,1761246642438,-151.0,0.00036601,30]
[392188124,1761246642446,-151.0,0.00036601,30]
[392188125,1761246642456,-272.020899,0.00036601,30]
[392188126,1761246642466,-151.0,0.00036601,30]
[392188127,1761246642475,-151.0,0.00036601,30]
[392188128,1761246642484,-151.0,0.00036601,30]
[392188129,1761246642493,-151.0,0.00036601,30]
[392188130,1761246642502,-151.0,0.00036601,30]
[392188131,1761246642511,-151.0,0.00036601,30]
[392188132,1761246642521,-151.0,0.00036601,30]
[392188133,1761246642531,-151.0,0.00036601,30]
[392188134,1761246642541,-151.0,0.00036601,30]
[392188135,1761246642550,-151.0,0.00036601,30]
[392188136,1761246642560,-151.0,0.00036601,30]
[392188138,1761246642569,-151.0,0.00036601,30]
[392188140,1761246642578,-151.0,0.00036601,30]
[392188141,1761246642587,-151.0,0.00036601,30]
[392188142,1761246642596,-151.0,0.00036601,30]
[392188143,1761246642606,-151.0,0.00036601,30]
[392188144,1761246642615,-151.0,0.00036601,30]
[392188145,1761246642624,-151.0,0.00036601,30]
[392188146,1761246642633,-151.0,0.00036601,30]
[392188147,1761246642643,-151.0,0.00036601,30]
[392188148,1761246642652,-151.0,0.00036601,30]
[392188149,1761246642661,-151.0,0.00036601,30]
[392188150,1761246642670,-151.0,0.00036601,30]
[392188151,1761246642679,-151.0,0.00036601,30]
[392188152,1761246642690,-151.0,0.00036601,30]
[392188153,1761246642699,-151.0,0.00036601,30]
[392188154,1761246642708,-151.0,0.00036601,30]
[392188155,1761246642718,-814.216258,0.00036601,30]
[392188156,1761246642727,-814.216258,0.00036601,30]
[392188157,1761246642736,-814.216258,0.00036601,30]
[392188158,1761246642745,-152.122302,0.00036601,30]
[392188159,1761246642754,-814.216258,0.00036601,30]
[392188160,1761246642763,-215.244096,0.00036601,30]
[392188161,1761246642772,-151.0,0.00036601,30]
[392188162,1761246642781,-157.714855,0.00036601,30]
[392188163,1761246642790,-151.0,0.00036601,30]
[392188164,1761246642799,-151.0,0.00036601,30]
[392188165,1761246642808,-596.248041,0.00036601,30]
[392188166,1761246642817,-596.248041,0.00036601,30]
[392188167,1761246642826,-596.248041,0.00036601,30]
[392188168,1761246642835,-596.248041,0.00036601,30]
[392188169,1761246642845,-151.0,0.00036601,30]
[392188170,1761246642855,-151.0,0.00036601,30]
[392188172,1761246642863,-151.0,0.00036601,30]
[392188174,1761246642872,-154.641549,0.00036601,30]
[392188175,1761246642881,-151.0,0.00036601,30]
[392188176,1761246642891,-176.146582,0.00036601,30]
[392188177,1761246642900,-151.0,0.00036601,30]
[392188178,1761246642909,-176.146582,0.00036601,30]
[392188179,1761246642918,-176.146582,0.00036601,30]
[392188180,1761246642928,-151.0,0.00036601,10]
[392188181,1761246642937,-176.146582,0.00036601,30]
[392188182,1761246642947,-151.0,0.00036601,30]
[392188183,1761246642957,-151.0,0.00036601,30]
[392188185,1761246642967,-22169.1886062,0.00036605,2]
[392188187,1761246642976,-1001.7878,0.00036607,2]
[392188189,1761246642989,-151.0,0.00036608,30]
[392188190,1761246642998,-151.0,0.00036608,30]
[392188191,1761246643008,-151.0,0.00036608,30]
[392188192,1761246643018,-151.0,0.00036608,30]
[392188193,1761246643027,-151.0,0.00036608,30]
[392188194,1761246643038,-151.0,0.00036608,30]
[392188196,1761246643047,-151.0,0.00036608,30]
[392188198,1761246643057,-151.0,0.00036608,30]
[392188199,1761246643068,-151.0,0.00036608,30]
[392188200,1761246643078,-153.708584,0.00036608,30]
[392188201,1761246643088,-151.0,0.00036608,30]
[392188202,1761246643097,-151.0,0.00036608,30]
[392188203,1761246643107,-151.0,0.00036608,30]
[392188204,1761246643118,-151.0,0.00036608,30]
[392188205,1761246643128,-151.0,0.00036608,30]
[392188206,1761246643138,-151.0,0.00036608,30]
[392188207,1761246643148,-274.02048,0.00036608,30]
[392188208,1761246643159,-151.0,0.00036608,30]
[392188209,1761246643168,-200.0,0.00036626,2]
[392188210,1761246643178,-200.0,0.00036626,2]
[392188211,1761246643187,-249.18337873,0.00036626,2]
[392188212,1761246643196,-500.0,0.00036673,5]
[392188213,1761246643206,-160.15265772,0.00036673,2]
[392188214,1761246643217,-200.0,0.00036673,5]
[392188215,1761246643226,-500.0,0.00036673,5]
[392188216,1761246643236,-500.0,0.00036673,5]
[392188217,1761246643245,-500.0,0.00036673,5]
[392188218,1761246643254,-500.0,0.00036673,5]
[392188219,1761246643263,-500.0,0.00036673,5]
[392188220,1761246643273,-500.0,0.00036673,5]
[392188221,1761246643282,-500.0,0.00036673,5]
[392188222,1761246643292,-500.0,0.00036673,5]
[392188223,1761246643302,-500.0,0.00036673,5]
[392188224,1761246643311,-500.0,0.00036673,5]
[392188225,1761246643320,-668.31,0.00036673,14]
[392188226,1761246643329,-2016.59,0.000367,14]
[392188227,1761246643339,-457.09,0.000367,30]
[392188228,1761246643348,-500.0,0.000367,13]
[392188229,1761246643357,-800.0,0.000368,13]
[392188230,1761246643366,-1100.0,0.000369,13]
[392188231,1761246643376,-648.1,0.00036927,2]
[392188232,1761246643385,-668.31,0.00036947,14]
[392188233,1761246643394,-595.37131296,0.00036947,2]
[392188234,1761246643404,-300.0,0.00037013,120]
[392188235,1761246643413,-14440.209196,0.00037037,3]
[392188236,1761246643422,-14640.7132468,0.00037047,3]
[392188237,1761246643432,-289.0,0.00037083,2]
[392188238,1761246643443,-14640.7132468,0.00037111,3]
[392188239,1761246643452,-14440.209196,0.00037111,3]
[392188240,1761246643461,-247.2961628,0.00037121,5]
[392188241,1761246643471,-1000.0,0.00037121,5]
[392188242,1761246643480,-500.47029499,0.00037121,5]
[392188243,1761246643490,-271.07694409,0.00037121,5]
[392188244,1761246643499,-500.0,0.0003722,7]
[392188245,1761246643509,-500.0,0.0003722,30]
[392188246,1761246643518,-581.22513456,0.0003722,120]
[392188247,1761246643527,-500.30913434,0.00037221,5]
[392188248,1761246643536,-1000.0,0.00037221,5]
[392188249,1761246643546,-161.23945813,0.00037221,5]
[392188250,1761246643555,-1000.0,0.00037221,5]
[392188251,1761246643564,-1000.0,0.00037221,5]
[392188252,1761246643573,-1000.0,0.00037221,5]
[392188253,1761246643583,-1000.0,0.00037221,5]
[392188254,1761246643592,-1030.89090806,0.00037221,5]
[392188255,1761246643601,-1000.0,0.00037221,5]
[392188256,1761246643610,-1002.12364797,0.00037221,5]
[392188257,1761246643619,-668.31,0.00037221,14]
[392188258,1761246643629,-2541.31024,0.0003723,2]
[392188259,1761246643638,-1000.0,0.00037242,2]
[392188260,1761246643648,-500.0,0.000373,5]
[392188261,1761246643657,-301.42904761,0.000373,5]
[392188262,1761246643666,-500.0,0.000373,5]
[392188263,1761246643776,-166.47,0.00037352,2]
[392188264,1761246643786,-400.0,0.00037358,5]
[392188265,1761246643795,-14440.209196,0.00037411,3]
[392188266,1761246643804,-14640.7132468,0.00037422,3]
[392188267,1761246643813,-10103.15589341,0.00037425,2]
[392188268,1761246643823,-16890.93862512,0.00037432,2]
[392188269,1761246643832,-188.59207168,0.00037434,15]
[392188270,1761246643841,-668.31,0.00037495,14]
[392188271,1761246643850,-617.40005154,0.00037495,2]
[392188272,1761246643859,-473.83333808,0.00037557,2]
[392188273,1761246643868,-169.51,0.00037593,2]
[392188274,1761246643877,-14440.209196,0.00037658,3]
[392188275,1761246643886,-289.76729964,0.00037668,5]
[392188276,1761246643895,-14640.7132468,0.00037729,3]
[392188277,1761246643905,-647.07500476,0.00037768,5]
[392188278,1761246643915,-501.38371264,0.00037768,5]
[392188279,1761246643924,-1502.04286902,0.00037768,5]
[392188280,1761246643934,-1500.0,0.00037768,5]
[392188281,1761246643943,-1500.0,0.00037768,5]
[392188282,1761246643952,-1500.0,0.00037768,5]
[392188283,1761246643962,-668.36,0.00037769,14]
[392188284,1761246643971,-14440.209196,0.00037818,3]
[392188285,1761246643982,-14640.7132468,0.00037828,3]
[392188286,1761246643996,-151.0,0.00037838,30]
[392188287,1761246644005,-151.0,0.00037838,30]
[392188288,1761246644015,-151.0,0.00037838,30]
[392188289,1761246644025,-151.0,0.00037838,30]
[392188290,1761246644035,-240.660672,0.00037838,30]
[392188291,1761246644045,-240.660672,0.00037838,30]
[392188292,1761246644054,-240.660672,0.00037838,30]
[392188293,1761246644067,-151.0,0.00037838,30]
[392188294,1761246644077,-151.0,0.00037838,30]
[392188295,1761246644086,-151.0,0.00037838,30]
[392188296,1761246644095,-151.0,0.00037838,30]
[392188297,1761246644105,-151.0,0.00037838,30]
[392188298,1761246644114,-151.0,0.00037838,30]
[392188299,1761246644124,-151.0,0.00037838,30]
[392188300,1761246644133,-171.641704,0.00037838,30]
[392188301,1761246644143,-151.0,0.00037838,30]
[392188302,1761246644152,-151.0,0.00037838,30]
[392188303,1761246644162,-151.0,0.00037838,30]
[392188304,1761246644171,-151.0,0.00037838,30]
[392188305,1761246644181,-151.0,0.00037838,30]
[392188306,1761246644190,-151.0,0.00037838,30]
[392188307,1761246644200,-151.0,0.00037838,30]
[392188308,1761246644210,-151.0,0.00037838,30]
[392188309,1761246644219,-151.0,0.00037838,30]
[392188310,1761246644229,-151.0,0.00037838,30]
[392188311,1761246644238,-151.0,0.00037838,30]
[392188312,1761246644248,-214.628416,0.00037838,30]
[392188313,1761246644257,-151.0,0.00037838,30]
[392188314,1761246644267,-188.978806,0.00037838,30]
[392188315,1761246644276,-151.0,0.00037838,30]
[392188316,1761246644285,-151.0,0.00037838,30]
[392188317,1761246644294,-151.396814,0.00037838,30]
[392188318,1761246644304,-151.0,0.00037838,30]
[392188319,1761246644313,-814.216258,0.00037838,30]
[392188320,1761246644322,-814.216258,0.00037838,30]
[392188321,1761246644331,-814.216258,0.00037838,30]
[392188322,1761246644341,-814.216258,0.00037838,30]
[392188323,1761246644350,-275.683668,0.00037838,30]
[392188324,1761246644360,-151.0,0.00037838,30]
[392188325,1761246644370,-201.932413,0.00037838,30]
[392188326,1761246644379,-596.248041,0.00037838,30]
[392188327,1761246644389,-596.248041,0.00037838,30]
[392188328,1761246644398,-596.248041,0.00037838,30]
[392188329,1761246644407,-596.248041,0.00037838,30]
[392188330,1761246644417,-151.0,0.00037838,30]
[392188331,1761246644426,-228.787414,0.00037838,30]
[392188332,1761246644435,-151.0,0.00037838,30]
[392188333,1761246644445,-1000.0,0.00037848,5]
[392188334,1761246644454,-672.99088956,0.00037903,2]
[392188335,1761246644463,-600.0,0.00038042,5]
[392188336,1761246644473,-640.24385345,0.00038043,2]
[392188337,1761246644482,-264.44,0.00038099,2]
[392188338,1761246644491,-14440.209196,0.0003822,3]
[392188339,1761246644501,-2541.31025,0.0003823,2]
[392188340,1761246644510,-502.90900814,0.00038316,5]
[392188341,1761246644519,-500.0,0.00038316,5]
[392188342,1761246644529,-1136.67947853,0.00038316,5]
[392188343,1761246644539,-14640.7132468,0.00038345,3]
[392188344,1761246644548,-14440.209196,0.00038355,3]
[392188345,1761246644558,-151.0,0.00038356,30]
[392188346,1761246644567,-151.0,0.00038356,30]
[392188347,1761246644576,-151.0,0.00038356,30]
[392188348,1761246644585,-151.0,0.00038356,30]
[392188349,1761246644594,-10103.15589341,0.0003836,2]
[392188350,1761246644603,-151.0,0.00038365,120]
[392188351,1761246644612,-151.0,0.00038365,120]
[392188352,1761246644621,-151.0,0.00038365,120]
[392188353,1761246644630,-16890.93862512,0.00038365,2]
[392188354,1761246644640,-188.59207168,0.0003837,15]
[392188355,1761246644649,-151.0,0.0003837,120]
[392188356,1761246644658,-176.146582,0.0003837,120]
[392188357,1761246644667,-151.0,0.0003837,120]
[392188358,1761246644676,-176.146582,0.0003837,120]
[392188359,1761246644685,-176.146582,0.0003837,120]
[392188360,1761246644694,-152.379659,0.0003837,10]
[392188361,1761246644703,-176.146582,0.0003837,120]
[392188362,1761246644713,-151.0,0.0003837,120]
[392188363,1761246644722,-151.0,0.0003837,120]
[392188364,1761246644731,-14640.7132468,0.0003837,3]
[392188365,1761246644741,-150.0,0.00038373,5]
[392188366,1761246644751,-156.39673461,0.00038373,5]
[392188367,1761246644760,-161.62489034,0.00038373,5]
[392188368,1761246644769,-150.0,0.00038373,5]
[392188369,1761246644778,-14440.209196,0.0003838,3]
[392188370,1761246644787,-29281.4264936,0.0003839,3]
[392188371,1761246644796,-14440.209196,0.0003839,3]
[392188372,1761246644806,-1000.0,0.00038396,5]
[392188373,1761246644815,-6484.94,0.000384,30]
[392188374,1761246644824,-30651.6,0.000384,14]
[392188375,1761246644833,-151.0,0.000384,120]
[392188376,1761246644842,-151.0,0.000384,120]
[392188377,1761246644851,-151.0,0.000384,120]
[392188378,1761246644860,-14440.209196,0.00038581,3]
[392188379,1761246644870,-663.93287602,0.00038591,2]
[392188380,1761246644879,-679.17,0.00038629,120]
[392188381,1761246644888,-800.0,0.00038727,5]
[392188382,1761246644903,-166.47,0.00038776,2]
[392188383,1761246644912,-151.0,0.00038898,120]
[392188384,1761246644922,-151.0,0.00038898,120]
[392188385,1761246644931,-151.0,0.00038898,120]
[392188386,1761246644941,-151.0,0.00038898,120]
[392188387,1761246644951,-250.0,0.00038921,5]
[392188388,1761246644960,-201.06096354,0.00038921,5]
[392188389,1761246644970,-14640.7132468,0.00038924,3]
[392188390,1761246644980,-688.49839244,0.00039139,2]
[392188391,1761246644991,-2541.31024,0.0003923,2]
[392188392,1761246645000,-236.32,0.00039232,120]
[392188393,1761246645011,-14440.209196,0.00039289,3]
[392188394,1761246645020,-10103.15589341,0.00039294,2]
[392188395,1761246645031,-16890.93862512,0.00039299,2]
[392188396,1761246645040,-500.0,0.00039301,7]
[392188397,1761246645049,-188.59207168,0.00039305,15]
[392188398,1761246645060,-672.99088956,0.00039309,2]
[392188399,1761246645070,-14640.7132468,0.00039335,3]
[392188400,1761246645079,-1000.0,0.00039412,5]
[392188401,1761246645088,-1000.0,0.00039421,2]
[392188402,1761246645097,-250.46795363,0.00039468,5]
[392188403,1761246645106,-264.44,0.00039597,2]
[392188404,1761246645116,-342.03,0.00039654,2]
[392188405,1761246645125,-713.97283296,0.00039687,2]
[392188406,1761246645134,-255.11076555,0.00039726,15]
[392188407,1761246645144,-151.55363201,0.00039767,5]
[392188408,1761246645154,-14440.209196,0.00039835,3]
[392188409,1761246645163,-151.0,0.0003999,120]
[392188410,1761246645173,-296.729128,0.0003999,120]
[392188411,1761246645184,-151.0,0.0003999,120]
[392188412,1761246645193,-151.0,0.0003999,120]
[392188413,1761246645202,-240.660672,0.0003999,120]
[392188414,1761246645212,-240.660672,0.0003999,120]
[392188415,1761246645222,-240.660672,0.0003999,120]
[392188416,1761246645231,-151.0,0.0003999,120]
[392188417,1761246645239,-151.0,0.0003999,120]
[392188418,1761246645248,-151.0,0.0003999,120]
[392188419,1761246645257,-282.120773,0.0003999,120]
[392188420,1761246645267,-151.0,0.0003999,120]
[392188421,1761246645277,-151.0,0.0003999,120]
[392188422,1761246645286,-151.0,0.0003999,120]
[392188423,1761246645295,-151.0,0.0003999,120]
[392188425,1761246645305,-151.0,0.0003999,120]
[392188428,1761246645314,-151.0,0.0003999,120]
[392188430,1761246645323,-251.288916,0.0003999,120]
[392188432,1761246645333,-14440.209196,0.0003999,3]
[392188433,1761246645342,-1000.0,0.0004,7]
[392188434,1761246645351,-150.0,0.0004,90]
[392188435,1761246645360,-6484.94,0.0004,30]
[392188436,1761246645369,-30651.6,0.0004,14]
[392188437,1761246645378,-1250.0,0.0004,2]
[392188438,1761246645387,-151.0,0.0004,120]
[392188439,1761246645396,-151.0,0.0004,120]
[392188440,1761246645405,-151.0,0.0004,120]
[392188441,1761246645414,-151.0,0.0004,120]
[392188442,1761246645423,-151.0,0.0004,120]
[392188443,1761246645432,-226.393837,0.0004,120]
[392188444,1761246645442,-151.0,0.0004,120]
[392188445,1761246645452,-151.0,0.0004,120]
[392188446,1761246645462,-151.0,0.0004,120]
[392188447,1761246645472,-151.0,0.0004,120]
[392188448,1761246645481,-814.216258,0.0004,30]
[392188449,1761246645491,-814.216258,0.0004,30]
[392188450,1761246645500,-814.216258,0.0004,30]
[392188451,1761246645510,-814.216258,0.0004,30]
[392188452,1761246645519,-265.687019,0.0004,120]
[392188453,1761246645529,-596.248041,0.0004,120]
[392188454,1761246645538,-596.248041,0.0004,120]
[392188455,1761246645548,-596.248041,0.0004,120]
[392188456,1761246645557,-596.248041,0.0004,120]
[392188457,1761246645567,-151.0,0.0004,120]
[392188458,1761246645576,-500.0,0.00040073,30]
[392188459,1761246645585,-202.8170051,0.00040097,5]
[392188460,1761246645594,-166.47,0.000402,2]
[392188461,1761246645604,-307.0,0.00040208,2]
[392188462,1761246645613,-14440.209196,0.00040222,3]
[392188463,1761246645623,-10103.15589341,0.00040228,15]
[392188464,1761246645633,-2541.31025,0.0004023,3]
[392188465,1761246645643,-16890.93862512,0.00040232,15]
[392188466,1761246645653,-740.38982778,0.00040235,2]
[392188467,1761246645663,-188.59207168,0.00040241,15]
[392188468,1761246645672,-500.0,0.00040272,30]
[392188469,1761246645681,-508.05402942,0.00040381,2]
[392188470,1761246645690,-329.0,0.00040467,2]
[392188471,1761246645699,-1175.17959711,0.000405,120]
[392188472,1761246645710,-500.0,0.00040589,30]
[392188473,1761246645720,-192.57926527,0.00040645,30]
[392188474,1761246645729,-500.0,0.00040689,5]
[392188475,1761246645738,-646.87581535,0.00040711,120]
[392188476,1761246645747,-672.99088956,0.00040714,2]
[392188477,1761246645756,-500.0,0.00040741,30]
[392188478,1761246645765,-767.7842514,0.00040783,2]
[392188479,1761246645775,-389.0,0.00040841,7]
[392188480,1761246645783,-500.0,0.00040868,30]
[392188481,1761246645792,-389.0,0.00040919,2]
[392188482,1761246645801,-169.51,0.00041017,2]
[392188483,1761246645810,-14440.209196,0.00041086,3]
[392188484,1761246645819,-999.0,0.00041095,120]
[392188485,1761246645828,-500.01,0.00041096,120]
[392188486,1761246645837,-500.0,0.00041096,8]